Cogmind - Beta 17 @@@ ROGUE MODE // 2026.07.16 @ 23:11:04 Player: hlbuns Result: Destroyed by B-75 Beast with Magnetic Acceleration Cannon Performance ------------- Evolutions (3) 1500 Regions Visited (6) 1200 Robots Destroyed (159) 795 Value Destroyed (4584) 4584 Prototype IDs (1) 20 Alien Tech Used (0) 0 Bonus (350) 350 TOTAL SCORE: 8449 Bonus ------- High Alert Combat Kills 350 Cogmind --------- Core Integrity 0/700 Matter 293/300 Energy 348/350 System Corruption 1% Temperature Cool (12) Movement Rolling (90) Location -7/Lower Caves Parts ------- > --- POWER (2) -------- Light Deuterium Engine Cooled Deuterium Engine > --- PROPULSION (3) --- Wheel Compact Wheel > --- UTILITY (6) ------ Improved Heat Sink Small Storage Unit Advanced Weight Redist. System Improved Terrain Scanner Advanced Terrain Scan Processor Launcher Guidance Computer > --- WEAPON (2) ------- Plasma Cannon Mini Grenade Launcher > --- INVENTORY (8) ---- Cooled Deuterium Engine Lightning Gun Flak Gun Mini Grenade Launcher Mini Grenade Launcher Heavy Rocket Launcher Peak State ------------ > --- POWER ------------ Light Deuterium Engine Cooled Deuterium Engine > --- PROPULSION ------- Wheel Compact Wheel > --- UTILITY ---------- Improved Heat Sink Small Storage Unit Advanced Weight Redist. System Improved Terrain Scanner Advanced Terrain Scan Processor Launcher Guidance Computer > --- WEAPON ----------- Plasma Cannon Mini Grenade Launcher > --- INVENTORY -------- Cooled Deuterium Engine Lightning Gun Flak Gun Mini Grenade Launcher Mini Grenade Launcher Heavy Rocket Launcher [Rating: 36] Favorites ----------- Power Improved Ion Engine Engine Improved Ion Engine Power Core Nuclear Core Propulsion Light Treads Treads Light Treads Leg Titanium Leg Wheel Wheel Utility Large Storage Unit Device Heat Sink Storage Large Storage Unit Processor Visual Processing Unit Hackware Hacking Suite Protection Reactive Plating Weapon Light Cannon Energy Gun Medium Laser Energy Cannon Particle Cannon Ballistic Gun Assault Rifle Ballistic Cannon Light Cannon Launcher Mini Grenade Launcher Build | -11 -10 -10 -9 -8 -7 -7 ------- Run | Yrd Mat Min Mat Mat Fac Low Slots Evolved 6 | . . . 2 2 2 . Power 1 | . . . . . 1 . Propulsion 1 | . . . 1 . . . Utility 4 | . . . 1 2 1 . Weapon . | . . . . . . . Parts Attached 115 | 7 13 3 18 37 35 2 Power 16 | 1 3 1 1 4 5 1 Engine 11 | 1 3 1 1 2 2 1 Core 5 | . . . . 2 3 . Reactor . | . . . . . . . Propulsion 30 | 2 2 . 9 5 12 . Treads 22 | 2 2 . 9 5 4 . Leg 1 | . . . . . 1 . Wheel 7 | . . . . . 7 . Hover . | . . . . . . . Flight . | . . . . . . . Utility 42 | 2 3 1 5 20 10 1 Device 15 | 1 1 . 5 5 3 . Storage 6 | 1 1 1 . 2 . 1 Processor 12 | . 1 . . 7 4 . Hackware 2 | . . . . 2 . . Protection 7 | . . . . 4 3 . Artifact . | . . . . . . . Weapon 27 | 2 5 1 3 8 8 . Energy Gun 7 | 1 2 . . 2 2 . Energy Cannon 4 | . . . 1 1 2 . Ballistic Gun 4 | 1 1 . . 1 1 . Ballistic Cannon 8 | . 1 1 2 3 1 . Launcher 4 | . 1 . . 1 2 . Special Weapon . | . . . . . . . Impact Weapon . | . . . . . . . Slashing Weapon . | . . . . . . . Piercing Weapon . | . . . . . . . Special Melee Weapon . | . . . . . . . Unidentified Prototypes 1 | . . . . . 1 . Parts Lost 54 | . 1 . 7 16 30 . Power 8 | . . . . 3 5 . Propulsion 17 | . . . 2 5 10 . Utility 16 | . 1 . 3 5 7 . Weapon 13 | . . . 2 3 8 . Highest Loss Streak 16 | . 1 . 4 5 16 . To Critical Strikes 1 | . . . . . 1 . Average Backups 10 | 1 7 9 11 14 5 5 Power 1 | . 1 2 2 2 . 1 Propulsion 2 | . 2 3 2 2 . . Utility 1 | . 1 1 . 2 1 . Weapon 4 | . 2 3 5 6 3 4 Tool/Special . | . . . . . . . Unused Backups 12 | . 3 1 . 3 . 5 Power 3 | . 1 . . 1 . 1 Propulsion 2 | . 1 1 . . . . Utility 1 | . . . . 1 . . Weapon 6 | . 1 . . 1 . 4 Tool/Special . | . . . . . . . Average Slot Usage (%) 94 | . 97 100 98 96 77 85 Engine 9 | . 14 14 11 4 4 9 Core 1 | . . . . 4 4 . Treads 25 | . 28 28 32 26 6 . Wheel 1 | . . . . . 9 15 Device 13 | . 5 14 21 13 12 23 Storage 10 | . 14 14 11 9 1 6 Processor 7 | . 7 . . 12 17 15 Hackware 1 | . . . . 3 . . Protection 1 | . . . . 3 1 . Energy Gun 5 | . 13 14 2 . 3 . Energy Cannon 3 | . . . 6 6 2 7 Ballistic Gun 2 | . 10 . . 1 . . Ballistic Cannon 7 | . 2 13 12 8 1 . Launcher 1 | . . . . . 5 7 Peak Build Rating 36 | 7 11 9 15 29 35 36 Average Rating 16 | 5 8 8 13 24 26 33 On Entrance 14 | . 7 9 9 15 27 34 Avg Prop Armor Cover (%) 13 | . . . . . 13 . Naked Turns . | . . . . . . . Heaviest Build 49 | 12 23 33 37 49 48 31 Greatest Support 64 | 40 40 40 63 64 62 35 Greatest Overweight (x) 11 | . . . 1 11 5 . Average Overweight (x) . | . . . . . . . Largest Inventory Capacity 15 | 8 10 15 15 15 15 8 Average Capacity 12 | 7 8 14 15 15 7 7 Most Carried 15 | 3 10 11 15 15 14 6 Average Carried 10 | 1 7 9 11 14 5 5 Final Capacity 15 | 8 10 15 15 15 5 8 Final Carried 15 | 3 10 10 15 15 5 6 Class Distribution -------------------- 76% | Mutant 19% | Scavenger-Mutant Dominant Class ---------------- Mutant | -10/Materials Mutant | -10/Mines Mutant | -9/Materials Mutant | -8/Materials Scavenger-Mutant | -7/Factory Scavenger-Mutant | -7/Lower Caves Resources | -11 -10 -10 -9 -8 -7 -7 ----------- Run | Yrd Mat Min Mat Mat Fac Low Matter Collected 3511 | 284 411 124 730 1279 608 75 Remotely 324 | . . . . 324 . . Salvage Created 4386 | 84 505 93 1133 1609 839 123 Parts 272 | 8 37 3 68 101 53 2 Haulers Intercepted 3 | . 1 . 1 . 1 . Recyclers Shooed 3 | 1 1 . 1 . . . Parts Field Recycled . | . . . . . . . Retrieved Matter . | . . . . . . . Parts Self-Destructed . | . . . . . . . Prevented . | . . . . . . . Parts Restored . | . . . . . . . Kills | -11 -10 -10 -9 -8 -7 -7 ------- Run | Yrd Mat Min Mat Mat Fac Low Combat Hostiles Destroyed 113 | . 14 6 31 44 18 . Guns 19 | . 7 1 4 5 2 . Cannons 58 | . . 2 27 24 5 . AOE 34 | . 6 3 . 15 10 . Classes Destroyed 18 | 2 5 2 3 5 1 . Worker 11 | . . . 3 2 6 . Builder 8 | . . . . 4 4 . Tunneler 6 | 2 1 . 1 . 2 . Hauler 3 | . 1 . 1 . 1 . Recycler 7 | 1 . . 1 3 2 . Mechanic 2 | . . . . 2 . . Operator 2 | . 1 . 1 . . . Watcher 10 | . 3 . 3 3 1 . Swarmer 32 | . 6 . 7 11 8 . Grunt 48 | . 8 2 16 18 4 . Duelist 1 | . . . 1 . . . Sentry 16 | . . . 7 7 2 . Demolisher 3 | . . 1 . . 2 . Specialist 6 | . . . . 6 . . Hunter 2 | . . . . 1 1 . Programmer 1 | . . . . . 1 . Heavy 1 | . . . . 1 . . Packrat 2 | . . . . . . 2 Assembled 3 | . . 3 . . . . Best Kill Streak 9 | 3 5 3 9 8 7 . Combat Bots Only 9 | . 4 3 9 6 5 . Max Kills in Single Turn 4 | 1 3 2 1 4 3 1 Gunslinging . | . . . . . . . Exploded 4 | . 2 2 . 4 2 . Melee . | . . . . . . . Uniques/NPCs Destroyed . | . . . . . . . Combat | -11 -10 -10 -9 -8 -7 -7 -------- Run | Yrd Mat Min Mat Mat Fac Low Hostile Shots Fired 819 | . 55 10 131 280 341 2 Missed 246 | . 16 1 23 78 128 . Hits 573 | . 39 9 108 202 213 2 Melee 11 | . . . 8 3 . . Projectile 562 | . 39 9 100 199 213 2 AOE 31 | . . 5 . . 26 . Critical Strikes 11 | . 3 . 3 4 1 . Damage Taken 8457 | . 521 276 1440 2948 3212 60 Core 1342 | . 112 13 188 316 686 27 Absorbed by Shields . | . . . . . . . Redirected to Shielding 59 | . . . . 59 . . Ignored by Resistances 177 | . . . . 177 . . Regen/Repaired (Parts) 432 | . 40 . . 392 . . Core Remaining (%) 61 | 100 . 50 53 42 . . Volleys Fired 368 | 6 51 14 112 107 68 10 Largest 2 | 2 2 2 2 2 2 1 Hottest 110 | 60 80 80 101 101 110 80 Shots Fired 683 | 12 99 28 223 211 100 10 Gun 229 | 12 91 14 35 44 33 . Cannon 404 | . 1 11 188 154 40 10 Launcher 50 | . 7 3 . 13 27 . Special . | . . . . . . . Kinetic 353 | 6 42 11 140 126 28 . Thermal 262 | 6 50 14 83 60 39 10 Explosive 50 | . 7 3 . 13 27 . Electromagnetic 18 | . . . . 12 6 . Robot Hit Streak 18 | 3 14 7 15 18 7 4 Robot Miss Streak 5 | 3 4 2 5 4 5 2 Penetration Max 1 | . . . . 1 1 . Secondary Targets . | . . . . . . . Shots Hit Robots 447 | 7 60 20 133 152 69 6 Core Hits 247 | 4 29 12 49 103 48 2 Critical Kills . | . . . . . . . Critical Parts Destroyed . | . . . . . . . Critical Strikes 18 | . 2 . 6 7 3 . Burn 6 | . 2 . 4 . . . Blast 12 | . . . 2 7 3 . Melee Attacks . | . . . . . . . Impact . | . . . . . . . Slashing . | . . . . . . . Piercing . | . . . . . . . Sneak Attacks . | . . . . . . . Combat Hostiles . | . . . . . . . Follow-up Attacks . | . . . . . . . Damage Inflicted 11652 | 81 1149 416 2453 4843 2557 153 Guns 2257 | 81 733 113 286 618 426 . Cannons 5694 | . . 159 2132 2568 682 153 Explosions 3619 | . 408 139 . 1623 1449 . Melee . | . . . . . . . Ramming 82 | . 8 5 35 34 . . Kinetic 4879 | 61 330 159 1498 2336 495 . Thermal 2801 | 20 403 113 920 696 496 153 Explosive 3599 | . 408 139 . 1603 1449 . Electromagnetic 291 | . . . . 174 117 . Impact . | . . . . . . . Slashing . | . . . . . . . Piercing . | . . . . . . . Highest Corruption 1 | . . . . . 1 1 Average Corruption 1 | . . . . . 1 1 Corruption Purged . | . . . . . . . Corruption Blocked . | . . . . . . . Effects 2 | . . . . . . 2 Matter Fused 1 | . . . . . . 1 Data Loss (minor) 1 | . . . . . . 1 Overload Shots . | . . . . . . . Overflow Damage 284 | . 53 15 20 71 73 52 Projectiles 108 | . . . 20 36 . 52 Explosions 176 | . 53 15 . 35 73 . Melee . | . . . . . . . Knockbacks 29 | . . 1 14 13 1 . Impact . | . . . . . . . Kinetic 28 | . . 1 14 12 1 . Secondary 1 | . . . . 1 . . Self-Inflicted Damage 512 | . 41 45 . 249 177 . Shots 18 | . 2 3 . 7 6 . Rammed 11 | . 2 2 4 3 . . Targets Rammed 14 | . 3 2 4 5 . . Kicked . | . . . . . . . Crushed 3 | . 1 . . 2 . . Highest Temperature 164 | . 108 132 164 102 56 6 Average Temperature 39 | . 37 46 52 22 19 3 Received Heat Transfer 1953 | . 282 36 552 765 306 12 Siege Activations . | . . . . . . . Martial Activations . | . . . . . . . Shielding Activations . | . . . . . . . Robots Disrupted . | . . . . . . . Combat Hostiles . | . . . . . . . Robots Corrupted 1 | . . . . . 1 . Combat Hostiles 1 | . . . . . 1 . Parts Fried 2 | . . . . . 2 . Impact Corruptions . | . . . . . . . Robots Melted 1 | . 1 . . . . . Combat Hostiles 1 | . 1 . . . . . Parts Melted 5 | . . . 2 . 3 . Heat Transferred 6800 | 50 1332 333 2294 1480 1011 300 Parts Sabotaged . | . . . . . . . Parts Stolen . | . . . . . . . Parts Stripped . | . . . . . . . Power Chain Reactions . | . . . . . . . Alert | -11 -10 -10 -9 -8 -7 -7 ------- Run | Yrd Mat Min Mat Mat Fac Low Maximum Alert Level 3 | . . . 2 3 2 . Low Security (%) 45 | 100 100 100 28 15 . . Level 1 32 | . . . 50 34 75 . Level 2 17 | . . . 21 35 24 . Level 3 3 | . . . . 14 . . Level 4 . | . . . . . . . Level 5 . | . . . . . . . High Security . | . . . . . . . Max Security . | . . . . . . . Peak Influence 871 | 10 133 62 443 871 551 . Initial 394 | . . . . 165 394 . Average 243 | 1 49 10 270 439 350 . Influence Increases 3945 | 15 471 127 981 1482 869 . Destroy 0b10 Robot/C 2200 | . 280 60 620 880 360 . Destroy 0b10 Robot/NC 255 | 15 30 5 50 70 85 . Destroy Leader 536 | . 58 20 168 206 84 . Successful Hack 66 | . 16 . 27 19 4 . Disable Machine 345 | . 15 . 75 105 150 . Destroy Structure 318 | . 42 12 11 127 126 . Lose Combat Pursuer 225 | . 30 30 30 75 60 . Influence Decreases 3749 | 15 471 127 590 1006 1201 339 Entered New Map 898 | . . . . 226 473 199 Time Decay 2311 | 15 461 127 520 620 428 140 Lost Part 540 | . 10 . 70 160 300 . Squads Dispatched 22 | . 1 . 5 10 6 . Investigation 7 | . 1 . 2 3 1 . Extermination 1 | . . . . . 1 . Reinforcement 11 | . . . 3 7 1 . Assault . | . . . . . . . Garrison 3 | . . . . . 3 . Intercept . | . . . . . . . Searches Triggered . | . . . . . . . Construction Impeded 1 | . . . . 1 . . Haulers Reinforced 1 | . . . . . 1 . Active Scanning Responses . | . . . . . . . Cargo Convoy Interrupts . | . . . . . . . Stealth | -11 -10 -10 -9 -8 -7 -7 --------- Run | Yrd Mat Min Mat Mat Fac Low Distress Signals 8 | . . 1 1 4 2 . Communications Jammed . | . . . . . . . Distress Signals . | . . . . . . . Times Spotted 172 | . 21 7 54 58 31 1 Peak Tracking Total 11 | . 5 3 11 7 7 1 Tactical Retreats 12 | . 2 1 2 4 3 . Traps | -11 -10 -10 -9 -8 -7 -7 ------- Run | Yrd Mat Min Mat Mat Fac Low Traps Triggered 7 | . 1 . 1 2 3 . Indirectly . | . . . . . . . Trap Hack Attempts . | . . . . . . . Triggered . | . . . . . . . Disarmed . | . . . . . . . Reprogrammed . | . . . . . . . Reused . | . . . . . . . Traps Extracted . | . . . . . . . Installed . | . . . . . . . Triggered . | . . . . . . . Machines | -11 -10 -10 -9 -8 -7 -7 ---------- Run | Yrd Mat Min Mat Mat Fac Low Machines Disabled 23 | . 1 . 5 7 10 . Max in Single Turn 9 | . 1 . 1 2 9 . Garrison Access 1 | . . . . 1 . . Machines Repaired . | . . . . . . . Machines Dismantled . | . . . . . . . Machines Sabotaged . | . . . . . . . Overloaded Fab Kills . | . . . . . . . Hacking | -11 -10 -10 -9 -8 -7 -7 --------- Run | Yrd Mat Min Mat Mat Fac Low Machines Accessed 20 | . 6 . 6 6 2 . Terminals 17 | . 5 . 6 4 2 . Fabricators . | . . . . . . . Repair Stations 2 | . 1 . . 1 . . Recycling Units . | . . . . . . . Scanalyzers . | . . . . . . . Garrison Access 1 | . . . . 1 . . Total Hacks 73 | . 18 . 25 25 5 . Successful 44 | . 10 . 17 16 1 . Failed 29 | . 8 . 8 9 4 . Catastrophic 3 | . 2 . . . 1 . Database Lockouts . | . . . . . . . Manual 54 | . 12 . 24 14 4 . Terminals 61 | . 16 . 25 15 5 . Fabricators . | . . . . . . . Repair Stations 10 | . 2 . . 8 . . Recycling Units . | . . . . . . . Scanalyzers . | . . . . . . . Garrison Access 2 | . . . . 2 . . Terminal Hacks 6 | . 2 . 2 1 1 . Branch Access Points 1 | . 1 . . . . . Alert Level 1 | . . . . 1 . . Locate Traps 2 | . 1 . . . 1 . Zone Layout 2 | . . . 2 . . . Fabricator Hacks . | . . . . . . . Repair Station Hacks 8 | . 2 . . 6 . . Scan Component 4 | . 1 . . 3 . . Repair 4 | . 1 . . 3 . . Recycling Unit Hacks . | . . . . . . . Scanalyzer . | . . . . . . . Garrison Access Hacks 1 | . . . . 1 . . Seal Access 1 | . . . . 1 . . Unauthorized Hacks 29 | . 6 . 15 8 . . Terminals 29 | . 6 . 15 8 . . Track 8 | . 1 . 5 2 . . Assimilate 6 | . 1 . 3 2 . . Botnet 13 | . 4 . 6 3 . . Skim 2 | . . . 1 1 . . Fabricators . | . . . . . . . Repair Stations . | . . . . . . . Recycling Units . | . . . . . . . Scanalyzers . | . . . . . . . Garrison Access . | . . . . . . . Data Cores Recovered 1 | . 1 . . . . . Used . | . . . . . . . Hacking Detections 15 | . 4 . 5 4 2 . Full Trace Events 4 | . . . 1 3 . . Feedback Events . | . . . . . . . Feedback Blocked . | . . . . . . . Robot Schematics Acquired . | . . . . . . . Robots Built . | . . . . . . . Authchips . | . . . . . . . Time . | . . . . . . . Total Robot Build Rating . | . . . . . . . Part Schematics Acquired . | . . . . . . . Parts Built . | . . . . . . . Authchips . | . . . . . . . Time . | . . . . . . . Total Part Build Rating . | . . . . . . . Part Studies Acquired . | . . . . . . . Parts Repaired 4 | . 1 . . 3 . . Time 128 | . 26 . . 102 . . Parts Recycled . | . . . . . . . Recycled Matter . | . . . . . . . Retrieved Matter . | . . . . . . . Retrieved Components . | . . . . . . . Parts Scanalyzed . | . . . . . . . Part Schematics Acquired . | . . . . . . . Parts Damaged . | . . . . . . . Bothacking | -11 -10 -10 -9 -8 -7 -7 ------------ Run | Yrd Mat Min Mat Mat Fac Low Used RIF Installer . | . . . . . . . Robots Hacked . | . . . . . . . Non-combat . | . . . . . . . Combat . | . . . . . . . Robot Hacks Applied . | . . . . . . . Relay Couplers Released . | . . . . . . . Fabnet Peak Effective % . | . . . . . . . Robots Rewired . | . . . . . . . Allies Hacked . | . . . . . . . Hacks Repelled . | . . . . . . . Allies | -11 -10 -10 -9 -8 -7 -7 -------- Run | Yrd Mat Min Mat Mat Fac Low Total Allies . | . . . . . . . Largest Group . | . . . . . . . Highest-Rated Group . | . . . . . . . Highest-Rated Ally . | . . . . . . . Total Orders . | . . . . . . . Ally Attacks . | . . . . . . . Total Damage . | . . . . . . . Kills . | . . . . . . . Allies Corrupted . | . . . . . . . Allies Melted . | . . . . . . . Intel | -11 -10 -10 -9 -8 -7 -7 ------- Run | Yrd Mat Min Mat Mat Fac Low Active Infowar (turns) 8154 | 45 1551 899 2232 2083 1049 295 Optics 2075 | . 926 . . 1149 . . Sensors 517 | . . . . 212 305 . Terrain 2642 | . . . 1372 660 315 295 Seismic 2868 | 45 625 899 1299 . . . T.N.C. 370 | . . . . . 370 . Machine Analysis 1655 | . . . . 582 1049 24 Robot Analysis Total . | . . . . . . . Derelict Logs Recovered 2 | . . 1 . . . 1 Drone Launches . | . . . . . . . Drone Recoveries . | . . . . . . . Exploration | -11 -10 -10 -9 -8 -7 -7 ------------- Run | Yrd Mat Min Mat Mat Fac Low Turns Passed 8519 | 140 1770 899 2283 2083 1049 295 Spaces Moved 4469 | 73 941 510 1140 955 704 146 Core 19 | 7 . . . 1 11 . Treads 3831 | 66 941 510 1140 954 220 . Legs 7 | . . . . . 7 . Wheels 612 | . . . . . 466 146 Hover . | . . . . . . . Flight . | . . . . . . . Fastest Speed 50 | 50 160 160 160 145 80 90 Average Speed 148 | 149 160 160 160 154 111 90 Slowest Speed 600 | 160 160 160 240 600 300 90 Overloaded Moves . | . . . . . . . Propulsion Burnouts . | . . . . . . . Robots Hopped . | . . . . . . . Potential Cave-ins . | . . . . . . . Cave-ins Triggered . | . . . . . . . Exploration Rate (%) 55 | 4 89 93 81 82 19 20 Regions Visited 6 Branch Regions 2 Pre-discovered Areas . | . . . . . . . Known Exits Taken 1 | . 1 . . . . . Unknown Exits Taken 5 | 1 . 1 1 1 1 . Scrap Searched 3 | . . 1 . . . 2 Spaces Dug . | . . . . . . . Terrain Destroyed 324 | . 44 18 5 134 123 . Melee . | . . . . . . . Projectile 34 | . . . 5 27 2 . AOE 290 | . 44 18 . 107 121 . Terrain Rammed . | . . . . . . . Walls Destroyed . | . . . . . . . Machines Disabled . | . . . . . . . Actions | -11 -10 -10 -9 -8 -7 -7 --------- Run | Yrd Mat Min Mat Mat Fac Low Total 5627 | 88 1105 564 1374 1341 856 299 Wait 495 | . 65 2 70 186 33 139 Move 4463 | 72 940 509 1139 954 703 146 Hop . | . . . . . . . Pick Up 52 | 3 11 1 15 15 6 1 Fast Attach 49 | 7 3 . 3 17 17 2 Attach 41 | . 1 1 9 14 16 . Detach 14 | . 2 1 2 6 2 1 Swap 63 | . 17 4 9 26 7 . Drop 40 | . 12 2 11 11 4 . Fire 368 | 6 51 14 112 107 68 10 Melee . | . . . . . . . Ram . | . . . . . . . Kick . | . . . . . . . Crush 14 | . 3 2 4 5 . . Escape Stasis . | . . . . . . . Rewire 28 | . . 28 . . . . Trap . | . . . . . . . Miscellaneous . | . . . . . . . Route ------- -11/Scrapyard -10/Materials (discovered 4 exits: *Mat x2 / *Min / [*Sub]) -10/Mines (discovered 3 exits: *Mat x2 / [*Sub]) -9/Materials (discovered 4 exits: *Mat x3 / [*Min]) -8/Materials (discovered 2 exits: *Fac x2) -7/Factory -7/Lower Caves History --------- Turn | Location | Event 8 | -11/Scrapyard | Discovered new exit (range 16) 141 | -11/Scrapyard | Entered Materials 264 | -10/Materials | Discovered new exit (range 8) 301 | -10/Materials | Build established: Mutant 556 | -10/Materials | Discovered new exit (range 15) 741 | -10/Materials | Derelicts attacked the area 836 | -10/Materials | Discovered new exit (range 12) 1183 | -10/Materials | Discovered new exit (range 10) 1286 | -10/Materials | Repaired Med. Laser 1754 | -10/Materials | Identified exit to Mines 1911 | -10/Materials | Entered Mines 1982 | -10/Mines | Discovered new exit (range 11) 2218 | -10/Mines | Assembled infested the area 2317 | -10/Mines | Discovered new exit (range 15) 2380 | -10/Mines | Discovered new exit (range 12) 2439 | -10/Mines | Learned Materials terminal intel 2508 | -10/Mines | A weapon hastily lodged in a ceiling crevice suddenly fell to the ground 2810 | -10/Mines | Entered Materials 2810 | -9/Materials | Evolved 2 slots: Propulsion x1, Utility x1 2811 | -9/Materials | Loaded intel: 12 terminal locations 3175 | -9/Materials | Discovered new exit (range 16) 3313 | -9/Materials | Lost 3 parts (1n1u1w) 3322 | -9/Materials | Destroyed 9 combat bots 3552 | -9/Materials | Discovered new exit (range 15) 4061 | -9/Materials | Discovered new exit (range 15) 4140 | -9/Materials | Lost 4 parts (1n2u1w) 4626 | -9/Materials | Discovered new exit (range 14) 5093 | -9/Materials | Entered another Materials area 5093 | -8/Materials | Evolved 2 slots: Utility x2 5701 | -8/Materials | Lost 5 parts (1p2n1u1w) 6184 | -8/Materials | Lost 5 parts (1p3u1w) 6487 | -8/Materials | Repaired Adv. Treads 6526 | -8/Materials | Repaired Adv. Treads 6554 | -8/Materials | Repaired Lgt. Treads 6665 | -8/Materials | Discovered new exit (range 18) 6850 | -8/Materials | Build established: Scavenger-Mutant 6964 | -8/Materials | Core integrity fell below 50% 7040 | -8/Materials | Lost 3 parts (1p1n1w) 7091 | -8/Materials | Discovered new exit (range 7) 7176 | -8/Materials | Entered Factory 7176 | -7/Factory | Evolved 2 slots: Power x1, Utility x1 7234 | -7/Factory | Assembled infested ambush trap array 7269 | -7/Factory | Garrison activated, responded to threat 7329 | -7/Factory | Lost 8 parts (2p1n2u3w) 7454 | -7/Factory | Core integrity fell below 50% 7527 | -7/Factory | Lost 16 parts (1p5n5u5w) 7534 | -7/Factory | Core integrity fell below 20% 7988 | -7/Factory | Lost 3 parts (1p2n) 7998 | -7/Factory | Discovered new exit (range 16) 8225 | -7/Factory | Entered Lower Caves 8238 | -7/Lower Caves | Learned Factory terminal intel 8520 | -7/Lower Caves | Spotted B-75 Beast 8520 | -7/Lower Caves | Destroyed by B-75 Beast with Magnetic Acceleration Cannon Last Messages --------------- 08249_ Discarded Machine Analyzer. 08250_ Acquired Sml. Storage Unit. 08252_ Acquired 9 matter. 08254_ Acquired Hvy. Rocket Launcher. 08425_ Destroyed Lgt. Deuterium Engine. 08425_ Destroyed Com. Wheel. 08427_ 6W-DAJ(r) destroyed. 08432_ Acquired 1 matter. 08433_ Destroyed Com. Wheel. 08439_ AH-9WI(r) destroyed. 08442_ Acquired Lgt. Deuterium Engine. 08443_ Acquired 10 matter. 08456_ Destroyed Lgt. Deuterium Engine. 08470_ Searching scrap... 08470_ Found Targeting Computer. 08470_ Found Med. Reactive Plating. 08470_ Found Mak. Power Source. 08470_ Found 69 Matter. 08474_ System corrupted: Component data lost. 08520_ System corrupted: Matter fused (-7). Map ----- +----------------------------------------------------+ | | | | | | | ?????????????????????????????????????????????????? | | ?????????????????????????????????????????????????? | | ?????????????????????????????????????????????????? | | ??????????????????????????????????????##?????????? | | ??????????????????????????##?????##???#??###?#?##? | | ?????????????????????????????#???#?#??#??#?#?#??#? | | ???????????????????????????????#?#?#?#??#?#??#?##? | | ?????????????????????????????#?####??#???#??????#? | | ???????????????????????#??#?????#???#??####?????#? | | ????????????????????????????????####??##?###?#?### | | ??????????????????????#?????????#?##?###?#?###?##? | | ??????????????????#??#?????#?###???#??#?##?#?####? | | ?????????????????#????????#?????##?####??????????# | | ????????????????????#??#???#?#???#####??###?##??#? | | ????????????????#???????#????#???#?#?#?##?#?##?### | | ?????????????????????????#?###?#?#######?######?## | | ??????????????#???#??????### ##??## # #### ##??## | | ??????????????#?????#??#### ##?## %* ##### | | ????????????????#????#????# ### ! ! | | ???????????????#??####?##?# # # ###### | | ??????????? ###### # ## ##?#### | | ??????????B # % ## ###?#??## | | ?????????????????# @# ####???#?### | | ????????????????# # #??######?### | | ????????????????#### ??# #?? ##?####?# #### | | ?????????????????????? # # ??#?##?### ##?# | | ??????????? ?????????# ?#?### #### | | ????????????#??????#?### # # ##### | | ???????????????????????## # ##### | | ????????????????????????#### ######### #### | | ?????????????????? ???#????#######?##?#### ### | | ?????????????????????#???##???????? ?#### ## | | ????????????????? ???????? ?????#? ?### ## | | ?????????????????????#???????#??#??? ### ## | | ????????????????????????????#??#??? ##?### ## | | ????????????????????????????#?#??? ?????#### | | ??????????????????????? ??????##? ??????#?### | | ???????????????????????? ???????#??? ?##?#?# | | ????????????????????????????? #???#?????# ?? ## | | ??????????????????????????????? ??????## ?## #?## | | ?????????????????????????????? ???#? ##?????? ??#? | | ??????????????????????????????????# ?##?? ??? #??# | | ??????????????????????????????????? ? ???????????? | | ????????????????????????????????? ??????? ??? #??? | | ???????????????????????????????????????? ????????# | | ?????????????????????????????????????????????????? | | ?????????????????????????????????????????#?#?????? | +----------------------------------------------------+ Best States ------------- Heat Dissipation 55 Energy Generation 27 Energy Capacity 370 Matter Stores 300 Matter Capacity 450 Sight Range 18 Robot Scan Range 15 Terrain Scan Range 16 Terrain Scan Density 210 Additional Mass Support 9 Armor Coverage 225 Resistance: KI 20 Core Shielding 20 Propulsion Shielding 33 Evasion (%) 45 Targeting Accuracy 6 Launcher Accuracy 20 Recoil Reduction 3 Offensive Hacking 10 Item Schematics ----------------- None Robot Schematics ------------------ None Fabricated ------------ Nothing Repaired ---------- Med. Laser | 42% | -10/Materials Adv. Treads | 16% | -8/Materials Adv. Treads | 21% | -8/Materials Lgt. Treads | 16% | -8/Materials Studied --------- None Alien Tech Used ----------------- None Achievements -------------- Omniscient Cartographer We Love MA root@ Challenges ------------ None Game ------ Seed VoltaicBlastBay Manual? 0 Play Time 01:37:22 Cumulative 20.2 hours Start 2026.07.15 @ 01:06:28 End 2026.07.16 @ 23:11:04 Sessions 3 Manual Loads 0 Difficulty Rogue Special Mode None Game No. 22 Rogue 10 Adventurer 12 Explorer 0 Win Type - Total 0 Types 0/0/0/0/0/0/0/0/0/0 Lore% 11 Gallery% 19 Achievement% 18 Wizard Run 0 Options --------- Layout 2 ASCII 0 Keyboard 1 Movement Arrows Keybinds 0 Fullscreen 2 Font 32/SmallcapsGlow Map View 50x44 Zoom Use 0% Tactical HUD 1 Map Filters NONE Filters NONE Steam 1 RUN: 0e579ca6-9332-4898-a3ea-921dcfaef8c5